lending/lending_fUSD_20250409
["ID","MTS","AMOUNT","RATE_DAILY","PERIOD"]
[357610205,1744235493208,-2525.83,0.0003863,2]
[357610206,1744235493217,-775.82,0.0003863,2]
[357610207,1744235493228,-500.0,0.0003863,2]
[357610208,1744235493238,-500.0,0.0003863,2]
[357610209,1744235493248,-505.87212167,0.0003863,2]
[357610210,1744235493258,-500.0,0.0003863,2]
[357610211,1744235493268,-955.21,0.0003863,2]
[357610212,1744235493278,-1151.05,0.0003863,2]
[357610213,1744235493288,-500.0,0.0003863,2]
[357610214,1744235493298,-500.0,0.0003863,2]
[357610215,1744235493308,-500.0,0.0003863,2]
[357610216,1744235493318,-969.06,0.0003863,2]
[357610217,1744235493328,-507.71898253,0.0003863,2]
[357610218,1744235493340,-500.0,0.0003863,2]
[357610219,1744235493351,-500.0,0.0003863,2]
[357610220,1744235493362,-500.0,0.0003863,2]
[357610221,1744235493372,-511.52,0.0003863,2]
[357610222,1744235493382,-686.74,0.0003863,2]
[357610223,1744235493392,-500.0,0.0003863,2]
[357610224,1744235493403,-516.55726477,0.0003863,2]
[357610225,1744235493413,-507.91,0.0003863,2]
[357610226,1744235493423,-500.0,0.0003863,2]
[357610227,1744235493433,-5051.26,0.0003863,2]
[357610228,1744235493444,-500.0,0.0003863,2]
[357610229,1744235493458,-500.0,0.0003863,2]
[357610230,1744235493468,-512.96004194,0.0003863,2]
[357610231,1744235493478,-757.52,0.0003863,2]
[357610232,1744235493490,-500.0,0.0003863,2]
[357610233,1744235493500,-450.0,0.0003863,14]
[357610234,1744235493509,-94773.12368267,0.0003863,2]
[357610235,1744235493519,-150.0,0.00038673,5]
[357610236,1744235493529,-151.041005,0.00038798,120]
[357610237,1744235493539,-297.6,0.00038826,2]
[357610238,1744235493549,-500.0,0.00038888,120]
[357610239,1744235493559,-2000.0,0.00038888,120]
[357610240,1744235493568,-500.0,0.00038888,120]
[357610241,1744235493579,-500.0,0.00038888,120]
[357610242,1744235493590,-500.0,0.00038903,2]
[357610243,1744235493601,-500.0,0.00038903,2]
[357610244,1744235493611,-500.0,0.00038903,2]
[357610245,1744235493622,-500.0,0.00038903,2]
[357610246,1744235493631,-500.0,0.00038903,2]
[357610247,1744235493641,-500.0,0.00038903,2]
[357610248,1744235493651,-500.0,0.00038903,2]
[357610249,1744235493661,-500.0,0.00038903,2]
[357610250,1744235493672,-500.0,0.00038903,2]
[357610251,1744235493681,-500.0,0.00038903,2]
[357610252,1744235493691,-500.0,0.00038903,2]
[357610253,1744235493702,-150.0,0.00038903,3]
[357610254,1744235493712,-151.0,0.00038904,14]
[357610255,1744235493722,-151.0,0.00038904,14]
[357610256,1744235493821,-286.12421358,0.00038904,2]
[357610257,1744235493834,-532.82602935,0.00038904,2]
[357610258,1744235493844,-500.0,0.00038904,2]
[357610259,1744235493853,-603.54441273,0.00038904,2]
[357610260,1744235493863,-500.0,0.00038904,2]
[357610261,1744235493872,-500.0,0.00038904,2]
[357610262,1744235493882,-535.78258481,0.00038904,2]
[357610263,1744235493891,-500.0,0.00038904,2]
[357610264,1744235493901,-500.0,0.00038904,2]
[357610265,1744235493911,-500.0,0.00038904,2]
[357610266,1744235493921,-500.0,0.00038904,2]
[357610267,1744235493930,-525.78377413,0.00038904,2]
[357610268,1744235493940,-500.0,0.00038904,2]
[357610269,1744235493949,-500.0,0.00038904,2]
[357610270,1744235493959,-500.0,0.00038904,2]
[357610271,1744235493969,-500.0,0.00038904,2]
[357610272,1744235493979,-518.73067003,0.00038904,2]
[357610273,1744235493989,-500.0,0.00038904,2]
[357610274,1744235493998,-500.0,0.00038904,2]
[357610275,1744235494008,-500.0,0.00038904,2]
[357610276,1744235494017,-509.96268591,0.00038904,2]
[357610277,1744235494027,-500.0,0.00038904,2]
[357610278,1744235494037,-872.89554,0.00038904,14]
[357610279,1744235494047,-872.89554,0.00038904,14]
[357610280,1744235494057,-490.61922804,0.00038904,2]
[357610281,1744235494066,-872.89554,0.00038904,14]
[357610282,1744235494076,-872.89554,0.00038904,14]
[357610283,1744235494087,-1000.0,0.00038904,2]
[357610284,1744235494097,-151.0,0.00038904,14]
[357610285,1744235494106,-500.0,0.00038904,2]
[357610286,1744235494116,-151.0,0.00038904,14]
[357610287,1744235494126,-500.0,0.00038904,2]
[357610288,1744235494136,-500.0,0.00038904,2]
[357610289,1744235494146,-768.82,0.00038904,2]
[357610290,1744235494155,-500.0,0.00038904,2]
[357610291,1744235494166,-419.51042091,0.00038904,2]
[357610292,1744235494176,-1033.22,0.00038904,2]
[357610293,1744235494187,-500.0,0.00038904,2]
[357610294,1744235494196,-500.0,0.00038904,2]
[357610295,1744235494206,-404.10185168,0.00038904,2]
[357610296,1744235494215,-500.0,0.00038904,2]
[357610297,1744235494226,-500.0,0.00038904,2]
[357610298,1744235494236,-500.0,0.00038904,2]
[357610299,1744235494246,-151.0,0.00038904,14]
[357610300,1744235494256,-610.71703112,0.00038904,2]
[357610301,1744235494266,-151.0,0.00038904,14]
[357610302,1744235494276,-690.19,0.00038904,2]
[357610303,1744235494287,-500.0,0.00038904,2]
[357610304,1744235494296,-504.0649957,0.00038904,2]
[357610305,1744235494306,-500.0,0.00038904,2]
[357610306,1744235494316,-515.22197288,0.00038904,2]
[357610307,1744235494325,-500.0,0.00038904,2]
[357610308,1744235494336,-653.93,0.00038904,2]
[357610309,1744235494347,-500.0,0.00038904,2]
[357610310,1744235494357,-500.0,0.00038904,2]
[357610311,1744235494367,-500.0,0.00038904,2]
[357610312,1744235494377,-500.0,0.00038904,2]
[357610313,1744235494387,-500.0,0.00038904,2]
[357610314,1744235494397,-500.0,0.00038904,2]
[357610315,1744235494407,-500.0,0.00038904,2]
[357610316,1744235494418,-500.0,0.00038904,2]
[357610317,1744235494428,-500.0,0.00038904,2]
[357610318,1744235494439,-562.39,0.00038904,2]
[357610319,1744235494450,-552.0274392,0.00038904,2]
[357610320,1744235494460,-500.0,0.00038904,2]
[357610321,1744235494470,-500.0,0.00038904,2]
[357610322,1744235494481,-299.545268,0.00038904,14]
[357610323,1744235494493,-299.545268,0.00038904,14]
[357610324,1744235494503,-500.0,0.00038904,2]
[357610325,1744235494513,-299.545268,0.00038904,14]
[357610326,1744235494524,-299.545268,0.00038904,14]
[357610327,1744235494533,-500.0,0.00038904,2]
[357610328,1744235494543,-500.0,0.00038904,2]
[357610329,1744235494552,-500.0,0.00038904,2]
[357610330,1744235494561,-321.47242042,0.00038904,2]
[357610331,1744235494571,-500.0,0.00038904,2]
[357610332,1744235494580,-500.0,0.00038904,2]
[357610333,1744235494590,-500.0,0.00038904,2]
[357610334,1744235494599,-500.0,0.00038904,2]
[357610335,1744235494609,-500.0,0.00038904,2]
[357610336,1744235494619,-523.63,0.00038904,2]
[357610337,1744235494629,-575.25,0.00038904,2]
[357610338,1744235494638,-500.0,0.00038904,2]
[357610339,1744235494647,-151.0,0.00038904,14]
[357610340,1744235494657,-500.0,0.00038904,2]
[357610341,1744235494666,-500.0,0.00038904,2]
[357610342,1744235494676,-500.0,0.00038904,2]
[357610343,1744235494685,-509.83095061,0.00038904,2]
[357610344,1744235494694,-500.0,0.00038904,2]
[357610345,1744235494703,-500.0,0.00038904,2]
[357610346,1744235494713,-643.66,0.00038904,2]
[357610347,1744235494722,-500.0,0.00038904,2]
[357610348,1744235494731,-500.0,0.00038904,2]
[357610349,1744235494740,-540.34270582,0.00038904,2]
[357610350,1744235494750,-500.0,0.00038904,2]
[357610351,1744235494759,-500.0,0.00038904,2]
[357610352,1744235494768,-517.26,0.00038904,2]
[357610353,1744235494777,-500.0,0.00038904,2]
[357610354,1744235494787,-500.0,0.00038904,2]
[357610355,1744235494796,-509.1,0.00038904,2]
[357610356,1744235494805,-500.0,0.00038904,2]
[357610357,1744235494815,-500.0,0.00038904,2]
[357610358,1744235494824,-517.35590296,0.00038904,2]
[357610359,1744235494833,-500.0,0.00038904,2]
[357610360,1744235494843,-500.0,0.00038904,2]
[357610361,1744235494853,-500.0,0.00038904,2]
[357610362,1744235494862,-544.02,0.00038904,2]
[357610363,1744235494872,-1591.25,0.00038904,2]
[357610364,1744235494881,-500.0,0.00038904,2]
[357610365,1744235494890,-158.229282,0.00038904,2]
[357610366,1744235494900,-500.0,0.00038904,2]
[357610367,1744235494910,-500.0,0.00038904,2]
[357610368,1744235494920,-922.766495,0.00038904,2]
[357610369,1744235494930,-500.0,0.00038904,2]
[357610370,1744235494939,-500.0,0.00038904,2]
[357610371,1744235494948,-500.0,0.00038904,2]
[357610372,1744235494957,-500.0,0.00038904,2]
[357610373,1744235494967,-500.0,0.00038904,2]
[357610374,1744235494976,-500.0,0.00038904,2]
[357610375,1744235494986,-515.08266712,0.00038904,2]
[357610376,1744235494995,-500.0,0.00038904,2]
[357610377,1744235495004,-500.0,0.00038904,2]
[357610378,1744235495013,-500.0,0.00038904,2]
[357610379,1744235495023,-1481.605419,0.00038904,2]
[357610380,1744235495032,-500.0,0.00038904,2]
[357610381,1744235495041,-512.21,0.00038904,2]
[357610382,1744235495051,-500.0,0.00038904,2]
[357610383,1744235495060,-575.18,0.00038904,2]
[357610384,1744235495069,-500.0,0.00038904,2]
[357610385,1744235495079,-539.00224372,0.00038904,2]
[357610386,1744235495090,-232.031497,0.00038904,14]
[357610387,1744235495099,-232.031497,0.00038904,14]
[357610388,1744235495108,-500.0,0.00038904,2]
[357610389,1744235495118,-500.0,0.00038904,2]
[357610390,1744235495127,-515.09003344,0.00038904,2]
[357610391,1744235495137,-1103.241651,0.00038904,2]
[357610392,1744235495146,-232.031497,0.00038904,14]
[357610393,1744235495155,-500.0,0.00038904,2]
[357610394,1744235495165,-232.031497,0.00038904,14]
[357610395,1744235495175,-555.55,0.00038904,2]
[357610396,1744235495184,-152.130457,0.00038904,2]
[357610397,1744235495194,-716.17,0.00038904,2]
[357610398,1744235495204,-569.8,0.00038904,2]
[357610399,1744235495213,-500.0,0.00038904,2]
[357610400,1744235495223,-500.0,0.00038904,2]
[357610401,1744235495233,-500.0,0.00038904,2]
[357610402,1744235495243,-500.0,0.00038904,2]
[357610403,1744235495252,-614.40851082,0.00038904,2]
[357610404,1744235495262,-500.0,0.00038904,2]
[357610405,1744235495271,-246.98045434,0.00038904,2]
[357610406,1744235495280,-500.0,0.00038904,2]
[357610407,1744235495289,-500.0,0.00038904,2]
[357610408,1744235495302,-500.0,0.00038904,2]
[357610409,1744235495316,-525.5383411,0.00038904,2]
[357610410,1744235495326,-500.0,0.00038904,2]
[357610411,1744235495336,-500.0,0.00038904,2]
[357610412,1744235495346,-500.0,0.00038904,2]
[357610413,1744235495356,-500.0,0.00038904,2]
[357610414,1744235495366,-543.93201772,0.00038904,2]
[357610415,1744235495378,-500.0,0.00038904,2]
[357610416,1744235495388,-500.0,0.00038904,2]
[357610417,1744235495397,-284.2326429,0.00038904,2]
[357610418,1744235495407,-500.0,0.00038904,2]
[357610419,1744235495417,-500.0,0.00038904,2]
[357610420,1744235495427,-352.10848339,0.00038904,2]
[357610421,1744235495437,-500.0,0.00038904,2]
[357610422,1744235495457,-500.0,0.00038904,2]
[357610423,1744235495472,-500.0,0.00038904,2]
[357610424,1744235495482,-518.28252265,0.00038904,2]
[357610425,1744235495492,-500.0,0.00038904,2]
[357610426,1744235495502,-500.0,0.00038904,2]
[357610427,1744235495511,-277.845457,0.00038904,14]
[357610428,1744235495521,-277.845457,0.00038904,14]
[357610429,1744235495531,-523.55,0.00038904,2]
[357610430,1744235495541,-500.0,0.00038904,2]
[357610431,1744235495551,-500.0,0.00038904,2]
[357610432,1744235495561,-277.845457,0.00038904,14]
[357610433,1744235495571,-277.845457,0.00038904,14]
[357610434,1744235495581,-500.0,0.00038904,2]
[357610435,1744235495592,-500.0,0.00038904,2]
[357610436,1744235495602,-500.0,0.00038904,2]
[357610437,1744235495611,-641.56,0.00038904,2]
[357610438,1744235495621,-522.12,0.00038904,2]
[357610439,1744235495631,-671.33,0.00038904,2]
[357610440,1744235495640,-500.0,0.00038904,2]
[357610441,1744235495650,-500.0,0.00038904,2]
[357610442,1744235495660,-500.0,0.00038904,2]
[357610443,1744235495670,-898.3,0.00038904,2]
[357610444,1744235495680,-500.0,0.00038904,2]
[357610445,1744235495690,-500.0,0.00038904,2]
[357610446,1744235495700,-500.0,0.00038904,2]
[357610447,1744235495709,-177.806214,0.00038904,14]
[357610448,1744235495719,-500.0,0.00038904,2]
[357610449,1744235495729,-571.52527456,0.00038904,2]
[357610450,1744235495739,-177.806214,0.00038904,14]
[357610451,1744235495748,-500.0,0.00038904,2]
[357610452,1744235495759,-500.0,0.00038904,2]
[357610453,1744235495769,-500.0,0.00038904,2]
[357610454,1744235495778,-177.806214,0.00038904,14]
[357610455,1744235495788,-500.0,0.00038904,2]
[357610456,1744235495798,-156.788597,0.00038904,2]
[357610457,1744235495807,-177.806214,0.00038904,14]
[357610458,1744235495817,-177.806212,0.00038904,14]
[357610459,1744235495827,-1488.11,0.00038904,2]
[357610460,1744235495837,-1000.0,0.00038904,2]
[357610461,1744235495847,-500.0,0.00038904,2]
[357610462,1744235495856,-500.0,0.00038904,2]
[357610463,1744235495866,-500.0,0.00038904,2]
[357610464,1744235495876,-500.0,0.00038904,2]
[357610465,1744235495886,-500.0,0.00038904,2]
[357610466,1744235495896,-500.0,0.00038904,2]
[357610467,1744235495906,-500.0,0.00038904,2]
[357610468,1744235495916,-1346.88,0.00038904,2]
[357610469,1744235495927,-500.0,0.00038904,2]
[357610470,1744235495937,-600.91,0.00038904,2]
[357610471,1744235495946,-500.0,0.00038904,2]
[357610472,1744235495956,-500.0,0.00038904,2]
[357610473,1744235495966,-500.0,0.00038904,2]
[357610474,1744235495976,-500.0,0.00038904,2]
[357610475,1744235495987,-500.0,0.00038904,2]
[357610476,1744235495997,-500.0,0.00038904,2]
[357610477,1744235496007,-1062.56,0.00038904,2]
[357610478,1744235496016,-1109.78,0.00038904,2]
[357610479,1744235496026,-1328.67,0.00038904,2]
[357610480,1744235496036,-1098.1,0.00038904,2]
[357610481,1744235496046,-500.0,0.00038904,2]
[357610482,1744235496056,-500.0,0.00038904,2]
[357610483,1744235496066,-500.0,0.00038904,2]
[357610484,1744235496076,-601.54,0.00038904,2]
[357610485,1744235496087,-500.0,0.00038904,2]
[357610486,1744235496096,-500.0,0.00038904,2]
[357610487,1744235496107,-500.0,0.00038904,2]
[357610488,1744235496117,-500.0,0.00038904,2]
[357610489,1744235496127,-2058.98,0.00038904,2]
[357610490,1744235496137,-500.0,0.00038904,2]
[357610491,1744235496147,-704.15,0.00038904,2]
[357610492,1744235496156,-500.0,0.00038904,2]
[357610493,1744235496166,-500.0,0.00038904,2]
[357610494,1744235496176,-500.0,0.00038904,2]
[357610495,1744235496186,-500.0,0.00038904,2]
[357610496,1744235496196,-500.0,0.00038904,2]
[357610497,1744235496206,-500.0,0.00038904,2]
[357610498,1744235496216,-500.0,0.00038904,2]
[357610499,1744235496225,-500.0,0.00038904,2]
[357610500,1744235496235,-1533.75,0.00038904,2]
[357610501,1744235496245,-890.15,0.00038904,2]
[357610502,1744235496255,-500.0,0.00038904,2]
[357610503,1744235496265,-2033.59,0.00038904,2]
[357610504,1744235496275,-500.0,0.00038904,2]
[357610505,1744235496285,-1091.45,0.00038904,2]
[357610506,1744235496295,-500.0,0.00038904,2]
[357610507,1744235496305,-998.38,0.00038904,2]
[357610508,1744235496315,-500.0,0.00038904,2]
[357610509,1744235496324,-500.0,0.00038904,2]
[357610510,1744235496334,-500.0,0.00038904,2]
[357610511,1744235496345,-500.0,0.00038904,2]
[357610512,1744235496355,-990.73,0.00038904,2]
[357610513,1744235496365,-1255.28,0.00038904,2]
[357610514,1744235496374,-740.02,0.00038904,2]
[357610515,1744235496384,-500.0,0.00038904,2]
[357610516,1744235496394,-500.0,0.00038904,2]
[357610517,1744235496404,-502.95613348,0.00038904,2]
[357610518,1744235496414,-840.51,0.00038904,2]
[357610519,1744235496423,-205.07323045,0.00038904,2]
[357610520,1744235496433,-628.73,0.00038904,2]
[357610521,1744235496447,-500.0,0.00038904,2]
[357610522,1744235496456,-513.68439416,0.00038904,2]
[357610523,1744235496467,-851.89,0.00038904,2]
[357610524,1744235496478,-1122.08,0.00038904,2]
[357610525,1744235496489,-500.0,0.00038904,2]
[357610526,1744235496499,-500.0,0.00038904,2]
[357610527,1744235496508,-500.0,0.00038904,2]
[357610528,1744235496519,-1594.69,0.00038904,2]
[357610529,1744235496529,-846.31,0.00038904,2]
[357610530,1744235496539,-500.0,0.00038904,2]
[357610531,1744235496549,-500.0,0.00038904,2]
[357610532,1744235496558,-539.93287909,0.00038904,2]
[357610533,1744235496568,-500.0,0.00038904,2]
[357610534,1744235496578,-500.0,0.00038904,2]
[357610535,1744235496589,-634.01,0.00038904,2]
[357610536,1744235496599,-500.0,0.00038904,2]
[357610537,1744235496609,-500.0,0.00038904,2]
[357610538,1744235496618,-500.0,0.00038904,2]
[357610539,1744235496628,-1789.24,0.00038904,2]
[357610540,1744235496638,-500.0,0.00038904,2]
[357610541,1744235496648,-500.0,0.00038904,2]
[357610542,1744235496658,-545.0041523,0.00038904,2]
[357610543,1744235496668,-500.0,0.00038904,2]
[357610544,1744235496678,-500.0,0.00038904,2]
[357610545,1744235496687,-2100.49,0.00038904,2]
[357610546,1744235496697,-1008.97,0.00038904,2]
[357610547,1744235496707,-500.0,0.00038904,2]
[357610548,1744235496717,-904.2,0.00038904,2]
[357610549,1744235496726,-575.38,0.00038904,2]
[357610550,1744235496736,-980.91,0.00038904,2]
[357610551,1744235496746,-616.294201,0.00038904,14]
[357610552,1744235496755,-616.294201,0.00038904,14]
[357610553,1744235496765,-500.0,0.00038904,2]
[357610554,1744235496775,-616.294201,0.00038904,14]
[357610555,1744235496784,-744.07,0.00038904,2]
[357610556,1744235496794,-500.0,0.00038904,2]
[357610557,1744235496804,-500.0,0.00038904,2]
[357610558,1744235496814,-500.0,0.00038904,2]
[357610559,1744235496824,-616.294201,0.00038904,14]
[357610560,1744235496837,-616.294201,0.00038904,14]
[357610561,1744235496847,-500.0,0.00038904,2]
[357610562,1744235496857,-1364.94,0.00038904,2]
[357610563,1744235496868,-616.294207,0.00038904,14]
[357610564,1744235496877,-500.0,0.00038904,2]
[357610565,1744235496888,-163.127945,0.00038904,14]
[357610566,1744235496898,-163.127945,0.00038904,14]
[357610567,1744235496908,-163.127945,0.00038904,14]
[357610568,1744235496918,-501.2841269,0.00038904,2]
[357610569,1744235496928,-500.0,0.00038904,2]
[357610570,1744235496937,-163.127945,0.00038904,14]
[357610571,1744235496948,-500.0,0.00038904,2]
[357610572,1744235496958,-500.0,0.00038904,2]
[357610573,1744235496967,-163.127945,0.00038904,14]
[357610574,1744235496977,-500.0,0.00038904,2]
[357610575,1744235496987,-163.127937,0.00038904,14]
[357610576,1744235496997,-536.90917749,0.00038904,2]
[357610577,1744235497007,-500.0,0.00038904,2]
[357610578,1744235497017,-595.45653006,0.00038904,2]
[357610579,1744235497027,-500.0,0.00038904,2]
[357610580,1744235497037,-747.87,0.00038904,2]
[357610581,1744235497046,-500.0,0.00038904,2]
[357610582,1744235497056,-500.0,0.00038904,2]
[357610583,1744235497066,-850.11,0.00038904,2]
[357610584,1744235497075,-1247.64,0.00038904,2]
[357610585,1744235497085,-1102.32,0.00038904,2]
[357610586,1744235497095,-500.0,0.00038904,2]
[357610587,1744235497105,-500.0,0.00038904,2]
[357610588,1744235497115,-659.47,0.00038904,2]
[357610589,1744235497125,-588.76,0.00038904,2]
[357610590,1744235497134,-500.0,0.00038904,2]
[357610591,1744235497144,-500.0,0.00038904,2]
[357610592,1744235497154,-500.0,0.00038904,2]
[357610593,1744235497164,-500.0,0.00038904,2]
[357610594,1744235497174,-626.4,0.00038904,2]
[357610595,1744235497184,-500.0,0.00038904,2]
[357610596,1744235497195,-151.0,0.00038904,14]
[357610597,1744235497205,-500.0,0.00038904,2]
[357610598,1744235497215,-500.0,0.00038904,2]
[357610599,1744235497225,-500.0,0.00038904,2]
[357610600,1744235497235,-500.0,0.00038904,2]
[357610601,1744235497245,-992.17,0.00038904,2]
[357610602,1744235497255,-500.0,0.00038904,2]
[357610603,1744235497265,-500.0,0.00038904,2]
[357610604,1744235497275,-500.0,0.00038904,2]
[357610605,1744235497284,-500.0,0.00038904,2]
[357610606,1744235497294,-500.0,0.00038904,2]
[357610607,1744235497304,-500.0,0.00038904,2]
[357610608,1744235497313,-500.0,0.00038904,2]
[357610609,1744235497323,-863.74,0.00038904,2]
[357610610,1744235497333,-669.2,0.00038904,2]
[357610611,1744235497344,-500.0,0.00038904,2]
[357610612,1744235497354,-500.2,0.00038904,2]
[357610613,1744235497364,-500.0,0.00038904,2]
[357610614,1744235497374,-500.0,0.00038904,2]
[357610615,1744235497383,-500.0,0.00038904,2]
[357610616,1744235497393,-500.0,0.00038904,2]
[357610617,1744235497403,-623.22,0.00038904,2]
[357610618,1744235497414,-987.07,0.00038904,2]
[357610619,1744235497423,-600.10372982,0.00038904,2]
[357610620,1744235497433,-500.0,0.00038904,2]
[357610621,1744235497444,-500.0,0.00038904,2]
[357610622,1744235497457,-500.0,0.00038904,2]
[357610623,1744235497467,-500.0,0.00038904,2]
[357610624,1744235497479,-500.0,0.00038904,2]
[357610625,1744235497492,-500.0,0.00038904,2]
[357610626,1744235497503,-500.0,0.00038904,2]
[357610627,1744235497515,-500.0,0.00038904,2]
[357610628,1744235497526,-663.93,0.00038904,2]
[357610629,1744235497537,-500.0,0.00038904,2]
[357610630,1744235497547,-1150.41,0.00038904,2]
[357610631,1744235497557,-500.0,0.00038904,2]
[357610632,1744235497567,-500.0,0.00038904,2]
[357610633,1744235497577,-950.19,0.00038904,2]
[357610634,1744235497588,-500.0,0.00038904,2]
[357610635,1744235497598,-700.43,0.00038904,2]
[357610636,1744235497608,-2733.502155,0.00038904,14]
[357610637,1744235497618,-2733.502155,0.00038904,14]
[357610638,1744235497856,-1644.09,0.00038904,2]
[357610639,1744235497866,-500.0,0.00038904,2]
[357610640,1744235497875,-2733.502155,0.00038904,14]
[357610641,1744235497885,-624.47412943,0.00038904,2]
[357610642,1744235497893,-2733.502155,0.00038904,14]
[357610643,1744235497903,-1196.11,0.00038904,2]
[357610644,1744235497912,-533.1,0.00038904,2]
[357610645,1744235497921,-410.729687,0.00038904,14]
[357610646,1744235497930,-500.0,0.00038904,2]
[357610647,1744235497939,-410.729687,0.00038904,14]
[357610648,1744235497948,-500.0,0.00038904,2]
[357610649,1744235497957,-305.11132571,0.00038904,2]
[357610650,1744235497966,-500.0,0.00038904,2]
[357610651,1744235497975,-500.0,0.00038904,2]
[357610652,1744235497984,-500.0,0.00038904,2]
[357610653,1744235497993,-500.0,0.00038904,2]
[357610654,1744235498003,-500.0,0.00038904,2]
[357610655,1744235498012,-500.0,0.00038904,2]
[357610656,1744235498021,-509.54,0.00038904,2]
[357610657,1744235498030,-500.0,0.00038904,2]
[357610658,1744235498039,-500.0,0.00038904,2]
[357610659,1744235498049,-605.75,0.00038904,2]
[357610660,1744235498058,-872.19,0.00038904,2]
[357610661,1744235498068,-500.0,0.00038904,2]
[357610662,1744235498077,-500.0,0.00038904,2]
[357610663,1744235498086,-151.0,0.00038904,14]
[357610664,1744235498095,-249.40361,0.00038904,14]
[357610665,1744235498105,-2888.05,0.00038904,2]
[357610666,1744235498114,-500.0,0.00038904,2]
[357610667,1744235498123,-1530.18,0.00038904,2]
[357610668,1744235498132,-500.0,0.00038904,2]
[357610669,1744235498141,-500.0,0.00038904,2]
[357610670,1744235498151,-500.0,0.00038904,2]
[357610671,1744235498161,-538.29,0.00038904,2]
[357610672,1744235498170,-500.0,0.00038904,2]
[357610673,1744235498180,-500.0,0.00038904,2]
[357610674,1744235498189,-500.0,0.00038904,2]
[357610675,1744235498198,-1392.95,0.00038904,2]
[357610676,1744235498207,-500.0,0.00038904,2]
[357610677,1744235498217,-760.73,0.00038904,2]
[357610678,1744235498226,-529.21,0.00038904,2]
[357610679,1744235498235,-500.0,0.00038904,2]
[357610680,1744235498245,-515.48508215,0.00038904,2]
[357610681,1744235498254,-1014.21,0.00038904,2]
[357610682,1744235498264,-500.0,0.00038904,2]
[357610683,1744235498273,-728.15,0.00038904,2]
[357610684,1744235498283,-671.68,0.00038904,2]
[357610685,1744235498292,-500.0,0.00038904,2]
[357610686,1744235498301,-500.0,0.00038904,2]
[357610687,1744235498312,-582.4,0.00038904,2]
[357610688,1744235498323,-500.0,0.00038904,2]
[357610689,1744235498332,-500.0,0.00038904,2]
[357610690,1744235498342,-600.66,0.00038904,2]
[357610691,1744235498352,-500.0,0.00038904,2]
[357610692,1744235498361,-500.0,0.00038904,2]
[357610693,1744235498370,-500.0,0.00038904,2]
[357610694,1744235498379,-905.89,0.00038904,2]
[357610695,1744235498388,-500.0,0.00038904,2]
[357610696,1744235498397,-640.01,0.00038904,120]
[357610697,1744235498406,-500.0,0.00038904,2]
[357610698,1744235498416,-500.0,0.00038904,2]
[357610699,1744235498425,-500.0,0.00038904,2]
[357610700,1744235498434,-500.0,0.00038904,2]
[357610701,1744235498444,-500.0,0.00038904,2]
[357610702,1744235498458,-600.12,0.00038904,2]
[357610703,1744235498468,-514.38158228,0.00038904,2]
[357610704,1744235498477,-500.0,0.00038904,2]